[Event "Live Chess"]
[Site "Chess.com"]
[Date "2024.06.01"]
[Round "-"]
[White "PughmanChess"]
[Black "StoreySniper"]
[Result "0-1"]
[WhiteElo "1379"]
[BlackElo "2535"]
[TimeControl "300"]
[EndTime "14:04:23 PDT"]
[Termination "StoreySniper won by resignation"]

1. e4 {[%clk 0:04:57]} 1... g6 {[%clk 0:04:59.2]} 2. d4 {[%clk 0:04:55.8]} 2...
Bg7 {[%clk 0:04:58.9]} 3. Nf3 {[%clk 0:04:54.1]} 3... c5 {[%clk 0:04:58.2]} 4.
dxc5 {[%clk 0:04:48.1]} 4... Qa5+ {[%clk 0:04:56.8]} 5. Bd2 {[%clk 0:04:43.1]}
5... Qxc5 {[%clk 0:04:55.8]} 6. Bc3 {[%clk 0:04:39]} 6... Nf6 {[%clk 0:04:54.9]}
7. Nbd2 {[%clk 0:04:33.6]} 7... Ng4 {[%clk 0:04:53.7]} 8. Qe2 {[%clk 0:04:26.7]}
8... Bxc3 {[%clk 0:04:51.6]} 9. bxc3 {[%clk 0:04:21.7]} 9... Qxc3 {[%clk
0:04:49.8]} 10. Rb1 {[%clk 0:04:16.5]} 10... Nc6 {[%clk 0:04:38.1]} 11. h3
{[%clk 0:04:12.4]} 11... Nge5 {[%clk 0:04:31.2]} 12. Nxe5 {[%clk 0:04:09.3]}
12... Nxe5 {[%clk 0:04:29.1]} 13. f4 {[%clk 0:04:08.6]} 13... Nc6 {[%clk
0:04:23.2]} 14. Qd3 {[%clk 0:03:53.4]} 14... Qf6 {[%clk 0:04:13.1]} 15. f5
{[%clk 0:03:37.9]} 15... O-O {[%clk 0:04:09.6]} 16. fxg6 {[%clk 0:03:33.9]}
16... fxg6 {[%clk 0:04:07]} 17. Nf3 {[%clk 0:03:12.9]} 17... e6 {[%clk
0:04:02.4]} 18. Be2 {[%clk 0:03:10.6]} 18... Ne5 {[%clk 0:04:00]} 19. Nxe5
{[%clk 0:03:08.7]} 19... Qxe5 {[%clk 0:03:56.4]} 20. Bf3 {[%clk 0:03:05.7]}
20... Qg3+ {[%clk 0:03:37.3]} 21. Ke2 {[%clk 0:02:54.5]} 21... b6 {[%clk
0:03:21.3]} 22. e5 {[%clk 0:02:47.5]} 22... Qxe5+ {[%clk 0:03:03.4]} 23. Qe4
{[%clk 0:02:46.4]} 23... Ba6+ {[%clk 0:02:59.6]} 24. Kf2 {[%clk 0:02:40.8]}
24... Qxe4 {[%clk 0:02:58.4]} 0-1

[Event "Live Chess"]
[Site "Chess.com"]
[Date "2024.06.01"]
[Round "-"]
[White "GwaryTek"]
[Black "CarmelJane"]
[Result "0-1"]
[WhiteElo "1918"]
[BlackElo "2094"]
[TimeControl "300"]
[EndTime "14:04:27 PDT"]
[Termination "CarmelJane won on time"]

1. d4 {[%clk 0:04:55]} 1... g6 {[%clk 0:04:59.3]} 2. c4 {[%clk 0:04:52]} 2...
Bg7 {[%clk 0:04:58.8]} 3. Nc3 {[%clk 0:04:51.4]} 3... c5 {[%clk 0:04:57]} 4. d5
{[%clk 0:04:49.9]} 4... Bxc3+ {[%clk 0:04:56.9]} 5. bxc3 {[%clk 0:04:49.1]} 5...
f5 {[%clk 0:04:54.2]} 6. h4 {[%clk 0:04:47.5]} 6... Nf6 {[%clk 0:04:46.9]} 7. h5
{[%clk 0:04:45.9]} 7... Qa5 {[%clk 0:04:40.8]} 8. hxg6 {[%clk 0:04:39.4]} 8...
Ne4 {[%clk 0:04:18.5]} 9. Bd2 {[%clk 0:03:32.4]} 9... Kf8 {[%clk 0:04:05.7]} 10.
Rxh7 {[%clk 0:02:51]} 10... Rxh7 {[%clk 0:04:00.2]} 11. gxh7 {[%clk 0:02:50.1]}
11... Kg7 {[%clk 0:03:59.3]} 12. e3 {[%clk 0:02:10.2]} 12... Nf6 {[%clk
0:03:39]} 13. Qf3 {[%clk 0:01:43.9]} 13... d6 {[%clk 0:03:34.8]} 14. Nh3 {[%clk
0:01:40.9]} 14... Kxh7 {[%clk 0:03:28.3]} 15. Nf4 {[%clk 0:01:34.8]} 15... Nbd7
{[%clk 0:03:21.1]} 16. Qh3+ {[%clk 0:01:31.2]} 16... Kg7 {[%clk 0:03:19.5]} 17.
Qxf5 {[%clk 0:01:24.4]} 17... Ne5 {[%clk 0:03:13.1]} 18. Qg5+ {[%clk 0:01:09.7]}
18... Kf8 {[%clk 0:03:06.1]} 19. Be2 {[%clk 0:00:35.8]} 19... Nf7 {[%clk
0:03:02.9]} 20. Qh4 {[%clk 0:00:23.8]} 20... Bf5 {[%clk 0:03:00.1]} 21. Ne6+
{[%clk 0:00:18.1]} 21... Ke8 {[%clk 0:02:54.6]} 22. Ng7+ {[%clk 0:00:16.2]}
22... Kd7 {[%clk 0:02:51.6]} 23. Nxf5 {[%clk 0:00:16.1]} 23... Rh8 {[%clk
0:02:47.7]} 24. Qg3 {[%clk 0:00:14.5]} 24... Rh1+ {[%clk 0:02:46.4]} 25. Bf1
{[%clk 0:00:12.8]} 25... Ne5 {[%clk 0:02:45.1]} 26. f3 {[%clk 0:00:08]} 26...
Nd3+ {[%clk 0:02:39.8]} 27. Ke2 {[%clk 0:00:06.6]} 27... Ne5 {[%clk 0:02:34.5]}
28. Qf4 {[%clk 0:00:05]} 28... Qa4 {[%clk 0:02:29.7]} 29. g4 {[%clk 0:00:02.9]}
29... Nxc4 {[%clk 0:02:27.1]} 30. Qxc4 {[%clk 0:00:01.8]} 30... Qxc4+ {[%clk
0:02:25.8]} 31. Kf2 {[%clk 0:00:01.7]} 31... Rh2+ {[%clk 0:02:22.4]} 0-1

[Event "Live Chess"]
[Site "Chess.com"]
[Date "2024.06.01"]
[Round "-"]
[White "ShanthamGrarks"]
[Black "dhairyapandyauk"]
[Result "0-1"]
[WhiteElo "1807"]
[BlackElo "1707"]
[TimeControl "300"]
[EndTime "14:04:46 PDT"]
[Termination "dhairyapandyauk won on time"]

1. d4 {[%clk 0:04:51.9]} 1... Nf6 {[%clk 0:04:58.3]} 2. Nc3 {[%clk 0:04:49.9]}
2... e6 {[%clk 0:04:57.7]} 3. e4 {[%clk 0:04:49.3]} 3... Bb4 {[%clk 0:04:54.9]}
4. Bg5 {[%clk 0:04:48.3]} 4... h6 {[%clk 0:04:53.4]} 5. Bxf6 {[%clk 0:04:45.7]}
5... Qxf6 {[%clk 0:04:53]} 6. Nf3 {[%clk 0:04:44.7]} 6... Bxc3+ {[%clk
0:04:48.3]} 7. bxc3 {[%clk 0:04:42.2]} 7... b6 {[%clk 0:04:48]} 8. Bd3 {[%clk
0:04:41.1]} 8... Bb7 {[%clk 0:04:47.3]} 9. Qe2 {[%clk 0:04:37.7]} 9... d6 {[%clk
0:04:46.7]} 10. O-O {[%clk 0:04:34.3]} 10... Nd7 {[%clk 0:04:45.9]} 11. c4
{[%clk 0:04:32.6]} 11... O-O {[%clk 0:04:43.2]} 12. c3 {[%clk 0:04:31.4]} 12...
e5 {[%clk 0:04:41.4]} 13. Rad1 {[%clk 0:04:24.6]} 13... Rfe8 {[%clk 0:04:34.3]}
14. d5 {[%clk 0:04:16.5]} 14... Nc5 {[%clk 0:04:32.5]} 15. Nd2 {[%clk
0:04:15.6]} 15... a5 {[%clk 0:04:24.4]} 16. f3 {[%clk 0:04:06.9]} 16... Qf4
{[%clk 0:04:12.3]} 17. Rf2 {[%clk 0:04:04.7]} 17... Ba6 {[%clk 0:04:08.5]} 18.
g3 {[%clk 0:03:59.7]} 18... Qg5 {[%clk 0:04:06.2]} 19. Rdf1 {[%clk 0:03:51.5]}
19... Qh5 {[%clk 0:03:52.6]} 20. Qe3 {[%clk 0:03:42.2]} 20... g6 {[%clk
0:03:44]} 21. Be2 {[%clk 0:03:40.3]} 21... g5 {[%clk 0:03:37.5]} 22. f4 {[%clk
0:03:19.1]} 22... g4 {[%clk 0:03:20.2]} 23. fxe5 {[%clk 0:03:13.5]} 23... dxe5
{[%clk 0:03:19.7]} 24. Rxf7 {[%clk 0:03:11.5]} 24... Rf8 {[%clk 0:03:19.2]} 25.
Rxf8+ {[%clk 0:03:00]} 25... Rxf8 {[%clk 0:03:18.8]} 26. Rxf8+ {[%clk 0:02:58]}
26... Kxf8 {[%clk 0:03:18.4]} 27. Qf2+ {[%clk 0:02:52.5]} 27... Kg7 {[%clk
0:03:17.8]} 28. Nf1 {[%clk 0:02:16.1]} 28... Nxe4 {[%clk 0:03:13.7]} 29. Qe3
{[%clk 0:02:11.6]} 29... Qf5 {[%clk 0:03:09.5]} 30. Kg2 {[%clk 0:01:55.4]} 30...
h5 {[%clk 0:03:06.3]} 31. Bd3 {[%clk 0:01:46.4]} 31... Qf3+ {[%clk 0:02:56.1]}
32. Qxf3 {[%clk 0:01:43.2]} 32... gxf3+ {[%clk 0:02:55.7]} 33. Kxf3 {[%clk
0:01:42.7]} 33... Nxc3 {[%clk 0:02:54.9]} 34. Ne3 {[%clk 0:01:38.4]} 34... Nxa2
{[%clk 0:02:49.5]} 35. Nf5+ {[%clk 0:01:36.8]} 35... Kf6 {[%clk 0:02:47.7]} 36.
Nh6 {[%clk 0:01:26.4]} 36... Nc3 {[%clk 0:02:44.8]} 37. Ng8+ {[%clk 0:01:23.4]}
37... Kf7 {[%clk 0:02:42.3]} 38. Nh6+ {[%clk 0:01:22.1]} 38... Kf6 {[%clk
0:02:41.4]} 39. Nf5 {[%clk 0:01:19.8]} 39... a4 {[%clk 0:02:35]} 40. Ne3 {[%clk
0:01:14.9]} 40... a3 {[%clk 0:02:29.1]} 41. Nc2 {[%clk 0:01:11.8]} 41... a2
{[%clk 0:02:28.4]} 42. Na1 {[%clk 0:01:03.8]} 42... e4+ {[%clk 0:02:18.8]} 43.
Bxe4 {[%clk 0:01:00.9]} 43... Bxc4 {[%clk 0:02:18.4]} 44. d6 {[%clk 0:00:55.3]}
44... cxd6 {[%clk 0:02:17.1]} 45. Bc2 {[%clk 0:00:50.4]} 45... d5 {[%clk
0:02:13.8]} 46. h3 {[%clk 0:00:49.4]} 46... b5 {[%clk 0:02:12.5]} 47. Ke3 {[%clk
0:00:45]} 47... b4 {[%clk 0:02:08]} 48. Kd4 {[%clk 0:00:42.9]} 48... Ne2+ {[%clk
0:02:04.2]} 49. Kc5 {[%clk 0:00:39.9]} 49... Ke5 {[%clk 0:01:53.1]} 50. Kxb4
{[%clk 0:00:38.4]} 50... Kd4 {[%clk 0:01:52.3]} 51. g4 {[%clk 0:00:33.6]} 51...
hxg4 {[%clk 0:01:51]} 52. hxg4 {[%clk 0:00:32.4]} 52... Nf4 {[%clk 0:01:44.6]}
53. g5 {[%clk 0:00:30.8]} 53... Bd3 {[%clk 0:01:38.8]} 54. Nb3+ {[%clk
0:00:24.8]} 54... Ke3 {[%clk 0:01:37]} 55. Bd1 {[%clk 0:00:18.6]} 55... Be2
{[%clk 0:01:28.2]} 56. Bxe2 {[%clk 0:00:17.2]} 56... Kxe2 {[%clk 0:01:23.4]} 57.
Ka3 {[%clk 0:00:16.3]} 57... a1=Q+ {[%clk 0:01:20.1]} 58. Nxa1 {[%clk
0:00:14.1]} 58... d4 {[%clk 0:01:19.8]} 59. Kb2 {[%clk 0:00:09.5]} 59... d3
{[%clk 0:01:18.9]} 60. Nb3 {[%clk 0:00:09.1]} 60... Ke3 {[%clk 0:01:04.1]} 61.
Kc3 {[%clk 0:00:08.1]} 61... Nd5+ {[%clk 0:01:03]} 62. Kc4 {[%clk 0:00:06.7]}
62... Nf4 {[%clk 0:01:02.4]} 63. Kc3 {[%clk 0:00:05.1]} 63... Ne2+ {[%clk
0:01:00.8]} 64. Kc4 {[%clk 0:00:04.3]} 64... Nc1 {[%clk 0:00:58]} 65. Nxc1
{[%clk 0:00:02.7]} 65... d2 {[%clk 0:00:57.2]} 66. Na2 {[%clk 0:00:00.3]} 66...
d1=Q {[%clk 0:00:56]} 67. Nc3 {[%clk 0:00:00.2]} 67... Qc2 {[%clk 0:00:54.7]}
0-1

[Event "Live Chess"]
[Site "Chess.com"]
[Date "2024.06.01"]
[Round "-"]
[White "WelshTiger"]
[Black "IanCalvert2"]
[Result "1-0"]
[WhiteElo "2520"]
[BlackElo "1600"]
[TimeControl "300"]
[EndTime "14:04:57 PDT"]
[Termination "WelshTiger won by resignation"]

1. e4 {[%clk 0:04:57.3]} 1... d5 {[%clk 0:04:55.3]} 2. exd5 {[%clk 0:04:55.3]}
2... Qxd5 {[%clk 0:04:52.6]} 3. Nc3 {[%clk 0:04:54.4]} 3... Qd6 {[%clk
0:04:51.6]} 4. d4 {[%clk 0:04:53.2]} 4... Nf6 {[%clk 0:04:50.7]} 5. Nf3 {[%clk
0:04:51.3]} 5... c6 {[%clk 0:04:49]} 6. Bd3 {[%clk 0:04:49.3]} 6... Bg4 {[%clk
0:04:46.6]} 7. Ne4 {[%clk 0:04:47.9]} 7... Nxe4 {[%clk 0:04:44.3]} 8. Bxe4
{[%clk 0:04:47.1]} 8... Nd7 {[%clk 0:04:41.3]} 9. h3 {[%clk 0:04:44.5]} 9... Bh5
{[%clk 0:04:37.6]} 10. Be3 {[%clk 0:04:35.6]} 10... Nf6 {[%clk 0:04:34.7]} 11.
Bd3 {[%clk 0:04:34.7]} 11... Nd5 {[%clk 0:04:28.4]} 12. Qe2 {[%clk 0:04:32.7]}
12... e6 {[%clk 0:04:20.9]} 13. O-O-O {[%clk 0:04:25.4]} 13... O-O-O {[%clk
0:04:09.8]} 14. g4 {[%clk 0:04:18.2]} 14... Bg6 {[%clk 0:04:05.6]} 15. Ne5
{[%clk 0:04:17.4]} 15... Bxd3 {[%clk 0:03:43.9]} 16. Rxd3 {[%clk 0:04:13.1]}
16... Qc7 {[%clk 0:03:37]} 17. Qf3 {[%clk 0:03:51.7]} 17... f6 {[%clk
0:03:07.5]} 18. Nc4 {[%clk 0:03:48.6]} 18... Nxe3 {[%clk 0:03:02.4]} 19. fxe3
{[%clk 0:03:46.3]} 19... Bd6 {[%clk 0:02:58.8]} 20. Kb1 {[%clk 0:03:33]} 20...
Kb8 {[%clk 0:02:48.9]} 21. e4 {[%clk 0:03:31.1]} 21... e5 {[%clk 0:02:43.5]} 22.
Nxd6 {[%clk 0:03:13.5]} 22... Qxd6 {[%clk 0:02:33.6]} 23. c3 {[%clk 0:03:03.4]}
23... Rhe8 {[%clk 0:02:01.5]} 24. d5 {[%clk 0:02:57.8]} 24... cxd5 {[%clk
0:01:53.6]} 25. Rxd5 {[%clk 0:02:57]} 25... Qb6 {[%clk 0:01:39.8]} 26. Rhd1
{[%clk 0:02:56.6]} 26... Rxd5 {[%clk 0:01:37.8]} 27. Rxd5 {[%clk 0:02:55.3]}
27... Rd8 {[%clk 0:01:35.9]} 28. Rxd8+ {[%clk 0:02:50.6]} 28... Qxd8 {[%clk
0:01:33]} 29. Kc2 {[%clk 0:02:50.4]} 29... Kc7 {[%clk 0:01:22.3]} 30. Qf5 {[%clk
0:02:47.8]} 30... h6 {[%clk 0:01:19.9]} 31. Qe6 {[%clk 0:02:44.5]} 31... Qd7
{[%clk 0:01:17.7]} 32. Qxd7+ {[%clk 0:02:41.8]} 32... Kxd7 {[%clk 0:01:16]} 33.
h4 {[%clk 0:02:40.7]} 33... g6 {[%clk 0:01:12.9]} 34. Kd3 {[%clk 0:02:32.4]}
34... Ke6 {[%clk 0:01:11.1]} 35. c4 {[%clk 0:02:27.9]} 35... f5 {[%clk
0:01:08.1]} 36. exf5+ {[%clk 0:02:24.7]} 36... gxf5 {[%clk 0:01:07.1]} 37. g5
{[%clk 0:02:23.4]} 37... hxg5 {[%clk 0:01:05.1]} 38. hxg5 {[%clk 0:02:22.7]}
38... Kf7 {[%clk 0:00:51.4]} 39. c5 {[%clk 0:02:19]} 39... Kg6 {[%clk
0:00:47.8]} 40. b4 {[%clk 0:02:18.2]} 40... Kxg5 {[%clk 0:00:46.5]} 41. b5
{[%clk 0:02:15.4]} 41... Kf6 {[%clk 0:00:43]} 42. a4 {[%clk 0:01:59.1]} 42...
Ke6 {[%clk 0:00:40.5]} 43. a5 {[%clk 0:01:58.3]} 43... Kd5 {[%clk 0:00:26.9]}
44. c6 {[%clk 0:01:57.3]} 44... bxc6 {[%clk 0:00:23.5]} 45. b6 {[%clk 0:01:56]}
45... axb6 {[%clk 0:00:18.8]} 46. a6 {[%clk 0:01:55.5]} 46... e4+ {[%clk
0:00:16.1]} 47. Ke2 {[%clk 0:01:53.6]} 47... f4 {[%clk 0:00:13.4]} 48. a7 {[%clk
0:01:52.6]} 48... f3+ {[%clk 0:00:10.8]} 49. Ke3 {[%clk 0:01:51.3]} 49... c5
{[%clk 0:00:09.3]} 50. a8=Q+ {[%clk 0:01:49.9]} 50... Kc4 {[%clk 0:00:06.8]} 51.
Qxe4+ {[%clk 0:01:48.5]} 1-0

[Event "Live Chess"]
[Site "Chess.com"]
[Date "2024.06.01"]
[Round "-"]
[White "Nazar-Makarchuk"]
[Black "booktrunk"]
[Result "0-1"]
[WhiteElo "1436"]
[BlackElo "1407"]
[TimeControl "300"]
[EndTime "14:05:21 PDT"]
[Termination "booktrunk won - game abandoned"]

1. e4 {[%clk 0:04:57.3]} 1... e6 {[%clk 0:04:56.3]} 2. Nf3 {[%clk 0:04:56.1]}
2... h6 {[%clk 0:04:53.7]} 3. d4 {[%clk 0:04:50.4]} 3... Nf6 {[%clk 0:04:53.6]}
4. Nc3 {[%clk 0:04:42]} 4... Nxe4 {[%clk 0:04:53.5]} 5. Nxe4 {[%clk 0:04:40.6]}
5... f6 {[%clk 0:04:07.5]} 6. Be2 {[%clk 0:04:27.2]} 6... Qe7 {[%clk 0:04:07.4]}
7. O-O {[%clk 0:04:10.2]} 7... b6 {[%clk 0:04:07.3]} 8. c3 {[%clk 0:04:08]} 8...
Bb7 {[%clk 0:04:03.9]} 9. Ng3 {[%clk 0:04:06.7]} 9... Nc6 {[%clk 0:04:01.8]} 10.
Be3 {[%clk 0:03:58.6]} 10... O-O-O {[%clk 0:03:59.8]} 11. Bb5 {[%clk 0:03:56.9]}
11... Kb8 {[%clk 0:03:57.5]} 12. Re1 {[%clk 0:03:50.9]} 12... Rc8 {[%clk
0:03:55.5]} 13. d5 {[%clk 0:03:42.3]} 13... exd5 {[%clk 0:03:48.5]} 0-1

[Event "Live Chess"]
[Site "Chess.com"]
[Date "2024.06.01"]
[Round "-"]
[White "GEMdzq"]
[Black "AlexanderMatlak"]
[Result "0-1"]
[WhiteElo "2315"]
[BlackElo "2445"]
[TimeControl "300"]
[EndTime "14:05:22 PDT"]
[Termination "AlexanderMatlak won by resignation"]

1. e4 {[%clk 0:04:58.1]} 1... c5 {[%clk 0:04:59]} 2. d4 {[%clk 0:04:56.9]} 2...
cxd4 {[%clk 0:04:57.8]} 3. c3 {[%clk 0:04:56.3]} 3... Nf6 {[%clk 0:04:57]} 4. e5
{[%clk 0:04:55.1]} 4... Nd5 {[%clk 0:04:56.2]} 5. Qxd4 {[%clk 0:04:54.5]} 5...
e6 {[%clk 0:04:55.1]} 6. Bd3 {[%clk 0:04:53.5]} 6... Nc6 {[%clk 0:04:53.9]} 7.
Qe4 {[%clk 0:04:52.7]} 7... f5 {[%clk 0:04:53.3]} 8. exf6 {[%clk 0:04:51.8]}
8... Nxf6 {[%clk 0:04:52.3]} 9. Qh4 {[%clk 0:04:50.9]} 9... Be7 {[%clk
0:04:44.7]} 10. Nf3 {[%clk 0:04:48.3]} 10... e5 {[%clk 0:04:39.8]} 11. Bg6+
{[%clk 0:04:45.6]} 11... Kf8 {[%clk 0:04:38.8]} 12. O-O {[%clk 0:04:42.8]} 12...
d5 {[%clk 0:04:38]} 13. c4 {[%clk 0:04:29.4]} 13... e4 {[%clk 0:04:15.9]} 14.
cxd5 {[%clk 0:04:20.6]} 14... Qxd5 {[%clk 0:04:15.8]} 15. Nc3 {[%clk 0:04:04.8]}
15... Qe6 {[%clk 0:04:03.3]} 16. Bxe4 {[%clk 0:03:59.6]} 16... Nxe4 {[%clk
0:03:45.1]} 17. Qxe4 {[%clk 0:03:59.5]} 17... Qxe4 {[%clk 0:03:44.4]} 18. Nxe4
{[%clk 0:03:58.6]} 18... Bf5 {[%clk 0:03:44]} 19. Ng3 {[%clk 0:03:54.7]} 19...
Bd3 {[%clk 0:03:39.3]} 20. Rd1 {[%clk 0:03:51.4]} 20... Rd8 {[%clk 0:03:38.1]}
21. Bg5 {[%clk 0:03:43]} 21... h6 {[%clk 0:03:25.1]} 22. Bxe7+ {[%clk
0:03:41.1]} 22... Kxe7 {[%clk 0:03:25]} 23. Re1+ {[%clk 0:03:35.6]} 23... Kf7
{[%clk 0:03:21.3]} 24. Ne4 {[%clk 0:03:29.9]} 24... Rhe8 {[%clk 0:02:56]} 25.
Nc5 {[%clk 0:03:25.2]} 25... Rxe1+ {[%clk 0:02:53]} 26. Rxe1 {[%clk 0:03:23.3]}
26... b6 {[%clk 0:02:52.4]} 27. Nxd3 {[%clk 0:03:19.5]} 27... Rxd3 {[%clk
0:02:52.3]} 28. h3 {[%clk 0:03:14.1]} 28... Kf6 {[%clk 0:02:38.3]} 29. Rc1
{[%clk 0:03:13.1]} 29... Nb4 {[%clk 0:02:35.6]} 30. a3 {[%clk 0:03:04.8]} 30...
Nd5 {[%clk 0:02:34]} 31. Rc6+ {[%clk 0:03:00.1]} 31... Ke7 {[%clk 0:02:30.1]}
32. Rg6 {[%clk 0:02:29.6]} 32... Kf8 {[%clk 0:02:14.4]} 33. Kh2 {[%clk
0:02:22.3]} 33... Nf6 {[%clk 0:02:08.2]} 34. Rg3 {[%clk 0:02:13.1]} 34... Rb3
{[%clk 0:02:06.9]} 35. Ne5 {[%clk 0:02:02.8]} 35... Rxb2 {[%clk 0:02:05]} 36. f4
{[%clk 0:01:57.1]} 36... b5 {[%clk 0:01:59.2]} 37. Rc3 {[%clk 0:01:47]} 37...
Nd5 {[%clk 0:01:52.1]} 38. Rc8+ {[%clk 0:01:45.7]} 38... Ke7 {[%clk 0:01:47.4]}
39. Rg8 {[%clk 0:01:14]} 39... Nxf4 {[%clk 0:01:39.8]} 40. Kg3 {[%clk
0:01:08.5]} 40... Ne6 {[%clk 0:01:26.3]} 41. Nc6+ {[%clk 0:01:06.9]} 41... Kf7
{[%clk 0:01:09.3]} 42. Rb8 {[%clk 0:00:59.6]} 42... a6 {[%clk 0:01:00.7]} 43.
Ra8 {[%clk 0:00:53.6]} 43... Rb3+ {[%clk 0:00:55.1]} 44. Kg4 {[%clk 0:00:52]}
44... Rxa3 {[%clk 0:00:55]} 45. Kf5 {[%clk 0:00:50.2]} 45... g6+ {[%clk
0:00:52.2]} 46. Ke5 {[%clk 0:00:48.3]} 46... Re3+ {[%clk 0:00:48.3]} 47. Kd6
{[%clk 0:00:47.5]} 47... Kf6 {[%clk 0:00:43.6]} 48. Re8 {[%clk 0:00:45.3]} 48...
Rd3+ {[%clk 0:00:39.8]} 49. Nd4 {[%clk 0:00:37.8]} 49... Rxd4+ {[%clk
0:00:38.5]} 50. Kc6 {[%clk 0:00:36.4]} 50... Rd2 {[%clk 0:00:34.7]} 51. Ra8
{[%clk 0:00:34.1]} 51... b4 {[%clk 0:00:33.6]} 0-1

[Event "Live Chess"]
[Site "Chess.com"]
[Date "2024.06.01"]
[Round "-"]
[White "Tushinskiy"]
[Black "Duke_of_Bebington"]
[Result "1-0"]
[WhiteElo "2260"]
[BlackElo "1627"]
[TimeControl "300"]
[EndTime "14:05:42 PDT"]
[Termination "Tushinskiy won by checkmate"]

1. d4 {[%clk 0:04:57.6]} 1... d5 {[%clk 0:04:58.9]} 2. c3 {[%clk 0:04:57.5]}
2... Nf6 {[%clk 0:04:56.4]} 3. Nf3 {[%clk 0:04:57.4]} 3... Bf5 {[%clk
0:04:54.7]} 4. Bf4 {[%clk 0:04:57.3]} 4... e6 {[%clk 0:04:52.2]} 5. Bg3 {[%clk
0:04:57.2]} 5... Bd6 {[%clk 0:04:51.2]} 6. Nbd2 {[%clk 0:04:57.1]} 6... Bxg3
{[%clk 0:04:49.5]} 7. hxg3 {[%clk 0:04:57]} 7... O-O {[%clk 0:04:48.8]} 8. Nh4
{[%clk 0:04:56.5]} 8... Bg6 {[%clk 0:04:47.7]} 9. Nxg6 {[%clk 0:04:56]} 9...
hxg6 {[%clk 0:04:47.6]} 10. Qc2 {[%clk 0:04:55.7]} 10... Nbd7 {[%clk 0:04:42.7]}
11. f4 {[%clk 0:04:54.2]} 11... Ng4 {[%clk 0:04:39.3]} 12. Nf3 {[%clk
0:04:52.7]} 12... Ndf6 {[%clk 0:04:25.7]} 13. Rh4 {[%clk 0:04:45.2]} 13... Qd6
{[%clk 0:04:13.2]} 14. Ne5 {[%clk 0:04:38.1]} 14... Ne3 {[%clk 0:04:07.9]} 15.
Qd3 {[%clk 0:04:36.7]} 15... Nf5 {[%clk 0:03:46.1]} 16. Rh3 {[%clk 0:04:34.8]}
16... Ne4 {[%clk 0:03:40]} 17. g4 {[%clk 0:04:24.5]} 17... Nh6 {[%clk
0:03:35.1]} 18. g5 {[%clk 0:04:21.5]} 18... Nf5 {[%clk 0:03:26.6]} 19. g4 {[%clk
0:04:20.1]} 19... Ne7 {[%clk 0:03:21.7]} 20. Bg2 {[%clk 0:04:17.8]} 20... f6
{[%clk 0:03:18.7]} 21. gxf6 {[%clk 0:04:08]} 21... gxf6 {[%clk 0:03:16.9]} 22.
Bxe4 {[%clk 0:04:02.3]} 22... fxe5 {[%clk 0:03:09]} 23. fxe5 {[%clk 0:03:58.8]}
23... Qd8 {[%clk 0:03:03.3]} 24. Bxg6 {[%clk 0:03:57.1]} 24... Rf4 {[%clk
0:02:44.9]} 25. Bh5 {[%clk 0:03:45]} 25... Qf8 {[%clk 0:02:36.6]} 26. O-O-O
{[%clk 0:03:43.5]} 26... Qg7 {[%clk 0:02:29.7]} 27. Rdh1 {[%clk 0:03:40.6]}
27... Raf8 {[%clk 0:02:25.2]} 28. e3 {[%clk 0:03:36.3]} 28... Rf2 {[%clk
0:02:19.2]} 29. a3 {[%clk 0:03:20.6]} 29... Qg5 {[%clk 0:02:04.9]} 30. Be8
{[%clk 0:03:09.3]} 30... Rf1+ {[%clk 0:01:41.2]} 31. Rxf1 {[%clk 0:03:06.9]}
31... Rxf1+ {[%clk 0:01:40.8]} 32. Qxf1 {[%clk 0:03:04.4]} 32... Qxg4 {[%clk
0:01:38.6]} 33. Qf7# {[%clk 0:03:03.1]} 1-0